bitfinex-derivatives/quotes_BNBF0:USTF0_20250305
["timestamp","ask_amount","ask_price","bid_price","bid_amount"]
[1741157500937,0.31075765,592.16,590.5,1.27249495]
[1741157502538,0.31075765,592.15,590.5,1.27249495]
[1741157502734,0.31075765,592.14,590.5,1.27249495]
[1741157502938,4.16262953,592.4,590.49,1.76581026]
[1741157502939,0.31075765,592.13,590.51,1.27249495]
[1741157503138,0.31075765,592.12,590.51,1.27249495]
[1741157503337,2.81314269,592.37,590.51,1.27249495]
[1741157503538,1.97100214,592.36,590.51,1.27249495]
[1741157503738,0.31075765,592.35,590.51,1.27249495]
[1741157503937,0.31075765,592.35,590.5,1.27249495]
[1741157504538,4.47338718,592.35,590.5,1.27249495]
[1741157504738,3.17472892,592.34,590.5,1.27249495]
[1741157504939,2.50238504,592.33,590.5,1.27249495]
[1741157505140,0.31077297,592.32,590.5,1.27249495]
[1741157505434,1.97101746,592.32,590.51,1.27249495]
[1741157505639,0.31077297,592.31,590.51,1.27249495]
[1741157505839,4.4734025,592.31,590.51,1.27249495]
[1741157506041,4.47301908,592.3,590.51,1.27249495]
[1741157506243,5.67674586,592.29,590.51,1.27249495]
[1741157506440,4.47301908,592.28,590.51,1.27249495]
[1741157506740,5.36566621,592.27,590.51,1.27249495]
[1741157506942,4.47271326,592.26,590.51,1.27249495]
[1741157507137,3.1747451,592.25,590.5,1.27249495]
[1741157507339,2.81246877,592.24,590.5,1.27249495]
[1741157507536,1.97101832,592.23,590.5,1.27249495]
[1741157507841,0.31077383,592.22,590.5,1.27249495]
[1741157508138,0.31077383,592.21,590.5,1.27249495]
[1741157508341,0.31077383,592.2,590.5,1.27249495]
[1741157508543,0.31077383,592.19,590.5,1.27249495]
[1741157508847,0.31077383,592.18,590.5,1.27249495]
[1741157509038,0.31077383,592.17,590.5,1.27249495]
[1741157509238,1.7659148,592.18,590.5,1.27249495]
[1741157509436,0.31077383,592.17,590.5,1.27249495]
[1741157509743,0.31077383,592.17,590.8,1.27249495]
[1741157510036,4.38807751,592.18,590.8,1.27249495]
[1741157510242,2.93292642,592.17,590.8,1.27249495]
[1741157510542,0.31076371,592.16,590.8,1.27249495]
[1741157510841,1.51449049,592.16,590.8,1.27249495]
[1741157511042,0.31076371,592.15,590.8,1.27249495]
[1741157511238,2.07645451,592.15,590.86,1.27249495]
[1741157511444,0.31076371,592.14,590.86,1.27249495]
[1741157511643,2.47675925,592.14,590.86,1.27249495]
[1741157511846,0.31076371,592.13,590.86,1.27249495]
[1741157512746,0.31076371,592.13,590.95,1.27249495]
[1741157513546,2.16635484,592.14,590.95,1.27249495]
[1741157513742,0.31076372,592.13,590.95,1.27249495]
[1741157514549,0.31076372,592.13,590.94,1.27249495]
[1741157514744,0.31076372,592.12,590.94,1.27249495]
[1741157514943,0.31076372,592.11,590.94,1.27249495]
[1741157515144,0.31076372,592.38,590.94,1.27249495]
[1741157515348,0.31076372,592.37,590.94,1.27249495]
[1741157515541,0.31076372,592.36,590.94,1.27249495]
[1741157515743,0.31076372,592.35,590.94,1.27249495]
[1741157515947,0.31076372,592.34,590.94,1.27249495]
[1741157516243,0.31076372,592.33,590.94,1.27249495]
[1741157516450,0.31076372,592.32,590.94,1.27249495]
[1741157516643,0.31076372,592.32,590.28,2.59801053]
[1741157516644,0.31076372,592.31,590.98,1.27249495]
[1741157516846,0.31076372,592.3,590.98,1.27249495]
[1741157517047,0.31076372,592.29,590.98,1.27249495]
[1741157517348,0.31076372,592.28,590.98,1.27249495]
[1741157517544,0.31076372,592.27,590.98,1.27249495]
[1741157517748,0.31076372,592.26,590.98,1.27249495]
[1741157517944,0.31076372,592.25,590.98,1.27249495]
[1741157518148,0.31076372,592.29,590.98,1.27249495]
[1741157518350,0.31076372,592.28,590.98,1.27249495]
[1741157518549,0.31076372,592.27,590.98,1.27249495]
[1741157518844,0.310758,592.26,590.98,1.27249495]
[1741157519046,0.310758,592.25,590.98,1.27249495]
[1741157519247,0.310758,592.24,590.98,1.27249495]
[1741157519546,0.310758,592.23,590.98,1.27249495]
[1741157519746,0.310758,592.22,590.98,1.27249495]
[1741157519943,0.310758,592.21,590.98,1.27249495]
[1741157520149,0.310758,592.2,590.98,1.27249495]
[1741157520345,1.76510121,592.3,591.05,1.27249495]
[1741157520646,0.310758,592.29,591.05,1.27249495]
[1741157520850,0.310758,592.28,591.05,1.27249495]
[1741157521150,0.310758,592.27,591.05,1.27249495]
[1741157521350,0.310758,592.26,591.05,1.27249495]
[1741157521545,0.310758,592.25,591.05,1.27249495]
[1741157521748,0.310758,592.29,591.05,1.27249495]
[1741157522551,0.310758,592.29,590.82,1.27249495]
[1741157523147,0.310758,592.98,590.82,1.27249495]
[1741157523451,0.31072059,592.97,590.82,1.27249495]
[1741157523647,0.31072059,592.96,590.82,1.27249495]
[1741157523856,0.31072059,592.95,590.82,1.27249495]
[1741157524157,0.31072059,592.94,590.82,1.27249495]
[1741157524357,0.31072059,592.93,590.82,1.27249495]
[1741157524554,1.76489979,592.96,590.78,1.76541461]
[1741157524555,0.31072059,592.92,590.8,1.27249495]
[1741157524755,0.31072059,592.91,590.8,1.27249495]
[1741157524953,0.31072059,592.9,590.8,1.27249495]
[1741157525155,0.31072059,592.89,590.8,1.27249495]
[1741157525355,0.31072059,592.88,590.8,1.27249495]
[1741157525557,0.31072059,592.87,590.8,1.27249495]
[1741157525753,0.31072059,592.86,590.79,1.27249495]
[1741157525953,0.31072059,592.85,590.79,1.27249495]
[1741157526157,0.31072059,592.84,590.79,1.27249495]
[1741157526360,0.31072059,592.83,590.79,1.27249495]
[1741157526659,0.31072059,592.82,590.79,1.27249495]
[1741157526858,0.31072059,592.81,590.79,1.27249495]
[1741157527059,0.33743314,592.71,590.8,0.33852403]
[1741157527360,0.31072059,592.7,590.8,0.33852403]
[1741157527561,0.33745022,592.68,590.8,0.33852403]
[1741157527755,0.31072059,592.67,590.8,0.33852403]
[1741157527954,0.3374673,592.65,590.8,0.33852403]
[1741157528260,0.31072059,592.64,590.8,0.33852403]
[1741157528458,0.33748439,592.62,590.8,0.33852403]
[1741157528658,0.31072059,592.61,590.8,0.33852403]
[1741157528855,0.33750147,592.59,590.8,0.33852403]
[1741157529059,0.31072059,592.58,590.8,0.33852403]
[1741157529258,0.31072059,592.57,590.8,0.33852403]
[1741157529460,0.31072059,592.56,590.8,0.33852403]
[1741157529661,0.31072059,592.55,590.8,0.33852403]
[1741157529957,0.33753565,592.53,590.8,0.33852403]
[1741157530461,0.31071909,592.52,591.11,1.27249495]
[1741157530656,0.33755274,592.5,591.11,1.27249495]
[1741157530856,0.31071909,592.49,591.11,1.27249495]
[1741157531054,0.31071909,592.48,591.11,1.27249495]
[1741157531261,0.31071909,592.47,591.11,1.27249495]
[1741157531462,0.31071909,592.46,591.12,1.27249495]
[1741157531661,0.33758692,592.44,591.12,1.27249495]
[1741157531862,0.31071909,592.43,591.12,1.27249495]
[1741157532062,0.33760402,592.41,591.12,1.27249495]
[1741157532263,0.31071909,592.4,591.12,1.27249495]
[1741157532458,0.31071909,592.39,591.12,1.27249495]
[1741157532663,0.31071909,592.38,591.12,1.27249495]
[1741157532862,0.31071909,592.37,591.12,1.27249495]
[1741157533058,0.31071909,592.36,591.12,1.27249495]
[1741157533257,0.31071909,592.35,591.12,1.27249495]
[1741157533460,0.31071909,592.34,591.12,1.27249495]
[1741157533659,0.31071692,592.33,591.12,1.27249495]
[1741157533860,0.31071692,592.32,591.12,1.27249495]
[1741157534062,0.31071692,592.31,591.12,1.27249495]
[1741157534364,0.31071692,592.3,591.12,1.27249495]
[1741157534563,0.31071692,592.29,591.12,1.27249495]
[1741157534764,0.31071692,592.28,591.12,1.27249495]
[1741157534966,0.31071692,592.27,591.12,1.27249495]
[1741157535259,0.31070367,592.26,591.12,1.27249495]
[1741157535464,0.31070367,592.4,591.12,1.27249495]
[1741157535664,0.31070367,592.39,591.14,1.27249495]
[1741157535865,0.31070367,592.38,591.14,1.27249495]
[1741157536067,0.31070367,592.37,591.14,1.27249495]
[1741157536265,0.31070367,592.36,591.14,1.27249495]
[1741157536465,0.31070367,592.35,591.14,1.27249495]
[1741157536665,0.31070367,592.34,591.14,1.27249495]
[1741157536865,0.31070367,592.33,591.14,1.27249495]
[1741157537169,0.31070315,592.32,591.12,1.27249495]
[1741157537364,0.31070315,592.31,591.12,1.27249495]
[1741157537564,0.31070315,592.3,591.12,1.27249495]
[1741157537762,0.31070315,592.29,591.12,1.27249495]
[1741157537962,0.31070315,592.28,591.12,1.27249495]
[1741157538161,0.31070315,592.27,591.12,1.27249495]
[1741157538365,0.31070315,592.26,591.12,1.27249495]
[1741157538665,0.31070315,592.25,591.12,1.27249495]
[1741157538868,0.31070315,592.27,591.12,1.27249495]
[1741157539072,0.31070315,592.26,591.12,1.27249495]
[1741157539268,0.33770093,592.24,591.09,1.27249495]
[1741157539569,0.31070315,592.23,591.09,1.27249495]
[1741157539769,0.33771233,592.22,591.09,1.27249495]
[1741157539970,0.31070315,592.21,591.09,1.27249495]
[1741157540370,0.31071211,592.2,591.09,1.27249495]
[1741157540666,0.31071211,592.19,591.09,1.27249495]
[1741157540871,0.31071211,592.21,591.09,1.27249495]
[1741157541071,0.33771233,592.22,591.09,1.27249495]
[1741157541467,0.33771233,592.22,591.12,1.27249495]
[1741157543572,0.33771233,592.22,591.1,1.27249495]
[1741157545670,0.33771233,592.22,590.91,1.27249495]
[1741157545975,0.33771233,592.22,590.92,0.33845529]
[1741157548076,0.33771233,592.22,591.17,1.27249495]
[1741157549172,0.33771233,592.22,591.18,0.33830643]
[1741157551079,0.33771233,592.22,591.18,1.61080138]
[1741157553481,0.33771233,592.22,591.18,0.33830643]
[1741157555475,0.33771233,592.22,591.28,1.27249495]
[1741157557180,0.33771233,592.22,591.25,1.27249495]
[1741157559384,0.33771233,592.22,591.18,0.33830643]
[1741157559985,1.51451583,593.9,591.18,0.33830643]
[1741157560187,0.33684777,593.74,591.18,0.33830643]
[1741157560385,0.31049286,593.73,591.18,0.33830643]
[1741157560581,1.02762389,593.72,591.18,0.33830643]
[1741157560792,1.02762389,593.71,591.18,0.33830643]
[1741157560985,1.02762389,593.7,591.18,0.33830643]
[1741157561185,1.02762389,593.69,591.18,0.33830643]
[1741157561385,1.02762389,593.68,591.18,0.33830643]
[1741157561585,1.02762389,593.67,591.18,0.33830643]
[1741157561781,1.02762389,593.66,591.18,0.33830643]
[1741157561986,1.02762389,593.65,591.18,0.33830643]
[1741157562187,1.02762389,593.64,591.18,0.33830643]
[1741157562386,1.02762389,593.63,591.18,0.33830643]
[1741157562682,1.02762389,593.62,591.18,0.33830643]
[1741157562887,1.02762389,593.61,591.18,0.33830643]
[1741157563186,1.02762389,593.6,591.18,0.33830643]
[1741157563385,1.02762389,593.59,591.18,0.33830643]
[1741157563583,0.31049286,593.58,591.18,0.33830643]
[1741157563783,1.51451583,593.34,591.23,1.27249495]
[1741157563987,0.31049286,593.33,591.23,1.27249495]
[1741157564288,0.31049286,593.32,591.23,1.27249495]
[1741157564587,0.31049286,593.31,591.23,1.27249495]
[1741157564793,0.31049286,593.3,591.23,1.27249495]
[1741157564982,0.31049286,593.29,591.23,1.27249495]
[1741157565286,0.31049286,593.28,591.23,1.27249495]
[1741157565587,1.76342415,593.29,591.23,1.27249495]
[1741157565887,0.31044901,593.28,591.18,0.33830643]
[1741157566087,0.33716578,593.18,591.18,0.33830643]
[1741157566286,0.31044901,593.17,591.18,0.33830643]
[1741157566485,0.31044901,593.16,591.18,0.33830643]
[1741157566786,0.31044901,593.15,591.18,0.33830643]
[1741157566985,0.31044901,593.14,591.18,0.33830643]
[1741157567189,0.31044901,593.13,591.18,0.33830643]
[1741157567390,0.33716578,593.18,591.18,0.33830643]
[1741157567585,0.31045335,593.12,591.18,0.33830643]
[1741157567784,0.31045335,593.11,591.18,0.33830643]
[1741157567988,0.31045335,593.1,591.18,0.33830643]
[1741157568189,0.31045335,593.09,591.18,0.33830643]
[1741157568392,0.64767598,593.08,591.18,0.33830643]
[1741157568590,0.31045335,593.07,591.18,0.33830643]
[1741157568790,0.31045335,593.06,591.18,0.33830643]
[1741157568989,0.33722263,593.08,591.18,0.33830643]
[1741157569187,0.31045314,593.07,591.18,0.33830643]
[1741157569392,0.33723969,593.05,591.18,0.33830643]
[1741157569589,0.31045314,593.04,591.18,0.33830643]
[1741157569790,0.31045314,593.03,591.18,0.33830643]
[1741157569994,0.31045314,593.02,591.18,0.33830643]
[1741157570190,1.76378166,593.09,591.18,0.33830643]
[1741157570191,1.00660022,592.81,591.18,0.33830643]
[1741157570399,1.00660022,592.77,591.23,1.27249495]
[1741157570597,1.31705336,592.76,591.23,1.27249495]
[1741157570797,0.31045416,592.75,591.23,1.27249495]
[1741157570997,0.33726244,593.01,591.23,1.27249495]
[1741157570998,0.31045416,592.74,591.23,1.27249495]
[1741157571196,0.31045416,592.73,591.23,1.27249495]
[1741157571393,0.31045485,592.72,591.23,1.27249495]
[1741157571595,1.00660022,592.77,591.23,1.27249495]
[1741157571596,0.31045485,592.71,591.23,1.27249495]
[1741157571897,0.31045485,592.7,591.24,1.27249495]
[1741157572093,0.31045485,592.69,591.24,1.27249495]
[1741157572298,0.31045485,592.68,591.24,1.27249495]
[1741157572497,0.31045485,592.67,591.24,1.27249495]
[1741157572695,0.31045485,592.66,591.24,1.27249495]
[1741157572894,0.31045485,592.65,591.24,1.27249495]
[1741157573097,0.31045485,592.64,591.24,1.27249495]
[1741157573295,0.31045485,592.63,591.24,1.27249495]
[1741157573500,0.31045485,592.76,591.24,1.27249495]
[1741157573700,0.31045485,592.75,591.24,1.27249495]
[1741157573900,0.31045485,592.74,591.24,1.27249495]
[1741157574104,0.31045485,592.73,591.24,1.27249495]
[1741157574302,0.31045485,592.72,591.26,1.27249495]
[1741157574502,0.31045485,592.71,591.26,1.27249495]
[1741157574703,1.00651987,592.78,591.26,1.27249495]
[1741157574704,0.31045485,592.7,591.26,1.27249495]
[1741157574999,0.31045485,592.69,591.26,1.27249495]
[1741157575303,5.35822865,592.73,591.26,1.27249495]
[1741157575501,4.4688674,592.72,591.26,1.27249495]
[1741157575704,3.16912774,592.71,591.26,1.27249495]
[1741157575903,2.81001009,592.7,591.26,1.27249495]
[1741157576099,1.9693119,592.69,591.26,1.27249495]
[1741157576303,0.31045459,592.68,591.26,1.27249495]
[1741157576505,0.31045459,592.67,591.35,1.27249495]
[1741157576808,0.31045459,592.66,591.35,1.27249495]
[1741157577004,0.31045459,592.65,591.35,1.27249495]
[1741157577200,0.31045459,592.64,591.35,1.27249495]
[1741157577404,0.31045459,592.63,591.35,1.27249495]
[1741157577703,0.3104736,592.62,591.35,1.27249495]
[1741157577904,0.3104736,592.61,591.35,1.27249495]
[1741157578103,0.3104736,592.6,591.35,1.27249495]
[1741157578304,4.46766669,592.87,591.35,1.27249495]
[1741157578504,1.96871329,592.86,591.35,1.27249495]
[1741157578705,0.3104736,592.85,591.35,1.27249495]
[1741157579206,0.3104736,592.85,591.25,1.76403498]
[1741157579405,4.46766669,592.85,591.25,1.76403498]
[1741157579606,1.96871329,592.84,591.25,1.76403498]
[1741157579800,0.3104736,592.83,591.25,1.76403498]
[1741157579999,1.96871329,592.83,591.18,0.33830643]
[1741157580205,2.07446387,592.82,591.25,1.76399027]
[1741157580405,0.3104736,592.81,591.18,0.33830643]
[1741157580601,4.46766669,592.81,591.18,0.33830643]
[1741157580809,1.65823969,592.8,591.18,0.33830643]
[1741157581106,0.3104736,592.79,591.18,0.33830643]
[1741157581310,0.3104736,592.78,591.2,1.27249495]
[1741157581609,0.3104736,592.77,591.2,1.27249495]
[1741157581810,0.3104736,592.76,591.2,1.27249495]
[1741157582009,0.3104736,592.75,591.21,0.33828927]
[1741157582210,0.33742176,592.73,591.21,0.33828927]
[1741157582406,0.3104736,592.72,591.21,0.33828927]
[1741157582606,0.33742176,592.73,591.21,0.33828927]
[1741157582607,0.3104736,592.71,591.21,0.33828927]
[1741157582807,0.33743883,592.7,591.46,1.27249495]
[1741157583016,0.31047479,592.69,591.46,1.27249495]
[1741157583213,0.31047479,592.68,591.46,1.27249495]
[1741157583513,0.31047479,592.67,591.46,1.27249495]
[1741157583713,0.6479364,592.66,591.46,1.27249495]
[1741157583914,0.31047492,592.65,591.46,1.27249495]
[1741157584214,0.64794792,592.64,591.46,1.27249495]
[1741157584414,2.61790016,592.73,591.46,1.27249495]
[1741157584415,0.64795361,592.63,591.46,1.27249495]
[1741157584613,0.31047492,592.62,591.46,1.27249495]
[1741157584814,0.31047492,592.61,591.46,1.27249495]
[1741157585013,0.33749578,592.6,591.48,1.27249495]
[1741157585209,0.31047492,592.59,591.48,1.27249495]
[1741157585412,0.33750717,592.58,591.48,1.27249495]
[1741157585613,0.31047492,592.57,591.48,1.27249495]
[1741157585813,0.33751856,592.56,591.48,1.27249495]
[1741157586008,0.31047492,592.55,591.48,1.27249495]
[1741157586308,0.33752995,592.54,591.48,1.27249495]
[1741157586513,0.31047492,592.53,591.48,1.27249495]
[1741157586710,0.33754134,592.52,591.51,1.27249495]
[1741157586910,0.31047492,592.51,591.51,1.27249495]
[1741157587510,0.31047546,592.5,591.51,1.27249495]
[1741157587717,0.31047546,592.49,591.51,1.27249495]
[1741157588014,0.31047546,592.48,591.51,1.27249495]
[1741157588213,0.31047546,592.51,591.51,1.27249495]
[1741157588414,0.31047546,592.5,591.51,1.27249495]
[1741157588613,0.31047546,592.51,591.51,1.27249495]
[1741157588818,0.31047546,592.5,591.51,1.27249495]
[1741157589018,0.31047546,592.51,591.51,1.27249495]
[1741157589316,0.31047546,592.5,591.51,1.27249495]
[1741157589516,0.31047546,592.5,591.38,1.52699394]
[1741157589517,0.31047546,592.51,591.38,1.27249495]
[1741157589714,0.31047546,592.5,591.38,1.27249495]
[1741157589916,0.31047546,592.51,591.38,1.27249495]
[1741157590116,0.31047546,592.5,591.38,1.27249495]
[1741157590319,0.31047546,592.51,591.38,1.27249495]
[1741157590511,0.31047546,592.5,591.38,1.27249495]
[1741157590717,0.31047546,592.51,591.38,1.27249495]
[1741157590914,0.31047546,592.5,591.38,1.27249495]
[1741157591315,0.31047546,592.49,591.38,1.27249495]
[1741157591516,0.31047546,592.51,591.38,1.27249495]
[1741157591712,0.31047546,592.5,591.38,1.27249495]
[1741157591920,0.31047546,592.49,591.38,1.27249495]
[1741157592121,0.31047546,592.48,591.59,1.27249495]
[1741157592417,0.31047546,592.47,591.59,1.27249495]
[1741157592620,0.31047546,592.51,591.59,1.27249495]
[1741157592921,0.31047546,592.5,591.59,1.27249495]
[1741157593122,0.31047546,592.51,591.59,1.27249495]
[1741157593322,0.31047546,592.5,591.59,1.27249495]
[1741157593623,0.31047546,592.49,591.59,1.27249495]
[1741157593821,0.31047546,592.51,591.59,1.27249495]
[1741157594121,0.31047546,592.5,591.59,1.27249495]
[1741157594323,0.31047546,592.49,591.62,1.27249495]
[1741157594520,0.31047546,592.48,591.62,1.27249495]
[1741157594721,0.33754134,592.52,591.62,1.27249495]
[1741157594722,0.31047546,592.47,591.62,1.27249495]
[1741157594919,0.31047546,592.51,591.62,1.27249495]
[1741157595124,0.31047546,592.5,591.62,1.27249495]
[1741157595424,0.31047546,592.49,591.62,1.27249495]
[1741157595625,0.31047546,592.48,591.62,1.27249495]
[1741157595820,0.31047546,592.51,591.62,1.27249495]
[1741157596023,0.31047014,592.5,591.62,1.27249495]
[1741157596223,0.31047014,592.51,591.62,1.27249495]
[1741157596624,0.31047014,592.51,591.66,1.27249495]
[1741157598526,0.31047014,592.51,591.61,1.27249495]
[1741157599326,0.33755274,592.5,591.61,1.27249495]
[1741157599626,0.31053622,592.49,591.61,1.27249495]
[1741157599826,0.33756413,592.48,591.61,1.27249495]
[1741157600019,0.31053622,592.47,591.61,1.27249495]
[1741157600327,0.33757553,592.46,591.61,1.27249495]
[1741157600523,0.31053622,592.45,591.61,1.27249495]
[1741157600829,0.33758692,592.44,591.38,1.27249495]
[1741157601028,0.31053622,592.43,591.38,1.27249495]
[1741157601228,0.33759832,592.42,591.38,1.27249495]
[1741157601425,0.31053622,592.41,591.38,1.27249495]
[1741157601824,0.64815674,592.4,591.38,1.26815884]
[1741157602030,0.31054702,592.39,591.38,1.26815884]
[1741157603528,0.31054702,592.39,591.37,1.76438527]
[1741157604032,0.31054702,592.39,591.21,0.33828927]
[1741157604432,0.33760972,592.4,591.21,0.33828927]
[1741157604629,0.31055103,592.39,591.21,0.33828927]
[1741157605034,0.31055103,592.39,591.22,1.76455675]
[1741157606130,0.31055104,592.38,591.22,1.76455675]
[1741157606335,0.31055104,592.39,591.22,1.76455675]
[1741157606532,0.31055104,592.38,591.22,1.76455675]
[1741157606730,0.31055104,592.39,591.22,1.76455675]
[1741157607036,0.31055104,592.38,591.21,0.33828927]
[1741157607338,0.31055104,592.37,591.22,1.76451947]
[1741157607633,0.31055104,592.36,591.22,1.76451947]
[1741157607838,0.33760972,592.4,591.22,1.76451947]
[1741157608039,0.31054879,592.39,591.22,1.76451947]
[1741157611239,0.31055104,592.38,591.22,1.76451947]
[1741157611442,0.31055104,592.39,591.22,1.76451947]
[1741157611644,0.31055104,592.38,591.22,1.76451947]
[1741157611941,0.31055104,592.37,591.22,1.76451947]
[1741157612141,0.31055104,592.39,591.22,1.76451947]
[1741157613043,0.33760972,592.4,591.21,0.33828927]
[1741157613243,0.31055423,592.39,591.22,1.76451947]
[1741157614636,0.33760972,592.4,591.22,1.76451947]
[1741157614936,0.31055332,592.39,591.22,1.76451947]
[1741157616144,0.31055332,592.39,591.21,0.33828927]
[1741157616344,0.31055332,592.39,591.22,1.76451947]
[1741157616944,0.30331732,592.39,591.22,1.76451947]
[1741157618248,0.31055179,592.38,591.22,1.76451947]
[1741157618448,0.31055179,592.37,591.22,1.76451947]
[1741157618648,0.31055179,592.36,591.22,1.76451947]
[1741157618844,0.31055179,592.35,591.22,1.76451947]
[1741157619047,0.33760972,592.4,591.21,0.33828927]
[1741157619048,0.31055179,592.39,591.21,0.33828927]
[1741157619245,0.31055179,592.38,591.22,1.76450456]
[1741157619445,0.31055179,592.37,591.22,1.76450456]
[1741157619647,0.31055179,592.36,591.22,1.76450456]
[1741157619951,0.31054963,592.35,591.22,1.76450456]
[1741157620250,0.31054963,592.34,591.22,1.76450456]
[1741157620452,0.31054963,592.33,591.22,1.76450456]
[1741157620645,0.31054963,592.32,591.22,1.76450456]
[1741157620851,0.31054963,592.39,591.22,1.76450456]
[1741157621050,0.31054963,592.38,591.22,1.76450456]
[1741157621251,0.31054963,592.37,591.22,1.76450456]
[1741157621645,0.31054963,592.36,591.22,1.76450456]
[1741157621845,0.31054963,592.39,591.22,1.76450456]
[1741157622045,0.33760972,592.4,591.21,0.33828927]
[1741157622251,0.31054221,592.39,591.22,1.76448965]
[1741157623351,0.31054391,592.38,591.22,1.76448965]
[1741157623546,0.31054391,592.37,591.22,1.76448965]
[1741157623745,0.31054391,592.36,591.22,1.76448965]
[1741157623949,0.31054391,592.39,591.22,1.76448965]
[1741157624149,0.31054391,592.38,591.22,1.76448965]
[1741157624354,0.31054391,592.39,591.22,1.76448965]
[1741157624551,0.31054391,592.38,591.22,1.76448965]
[1741157624748,0.31054391,592.39,591.22,1.76448965]
[1741157624948,0.31054391,592.38,591.22,1.76448965]
[1741157625274,0.31054391,592.37,591.22,1.76448965]
[1741157625447,0.31054391,592.36,591.22,1.76448965]
[1741157625651,0.31054391,592.35,591.22,1.76448965]
[1741157625851,0.31054391,592.39,591.22,1.76448965]
[1741157626048,0.31054391,592.38,591.22,1.76448965]
[1741157626251,0.31054391,592.39,591.22,1.76448965]
[1741157626455,0.31054391,592.38,591.22,1.76448965]
[1741157626755,0.31054391,592.37,591.22,1.76448965]
[1741157626954,0.31054391,592.39,591.22,1.76448965]
[1741157627254,0.31054391,592.38,591.22,1.76448965]
[1741157627455,0.31054391,592.37,591.22,1.76448965]
[1741157627753,0.31054391,592.36,591.22,1.76448965]
[1741157628055,0.31054391,592.39,591.21,1.86528321]
[1741157628256,0.31054391,592.38,591.22,1.76448965]
[1741157628553,0.31054391,592.37,591.22,1.76448965]
[1741157628753,0.31054391,592.36,591.22,1.76448965]
[1741157628953,0.31054391,592.35,591.22,1.76448965]
[1741157629149,0.31054391,592.34,591.22,1.76448965]
[1741157629355,0.31054391,592.33,591.22,1.76448965]
[1741157629556,0.31054391,592.32,591.33,1.52699394]
[1741157629750,0.31054391,592.31,591.33,1.52699394]
[1741157629955,0.31054391,592.3,591.33,1.52699394]
[1741157630155,0.31054391,592.29,591.33,1.52699394]
[1741157630349,0.31054391,592.39,591.33,1.52699394]
[1741157630553,0.31054391,592.38,591.33,1.52699394]
[1741157630753,0.31054391,592.37,591.33,1.52699394]
[1741157630949,0.31054391,592.39,591.33,1.52699394]
[1741157631153,0.31054391,592.38,591.33,1.52699394]
[1741157631358,0.31054391,592.37,591.33,1.52699394]
[1741157631556,0.33760972,592.4,591.22,1.76448965]
[1741157631557,0.31054391,592.36,591.34,1.52699394]
[1741157631851,0.31054391,592.35,591.34,1.52699394]
[1741157632057,0.31054391,592.39,591.34,1.52699394]
[1741157632255,0.33760972,592.4,591.34,1.52699394]
[1741157632256,0.31054391,592.38,591.34,1.52699394]
[1741157632456,0.31054391,592.39,591.34,1.52699394]
[1741157632651,0.31054391,592.38,591.34,1.52699394]
[1741157632850,0.31054391,592.37,591.34,1.52699394]
[1741157633054,0.31054391,592.36,591.34,1.52699394]
[1741157633258,0.31054391,592.39,591.37,1.52699394]
[1741157633557,0.31054391,592.38,591.37,1.52699394]
[1741157633755,0.31054391,592.39,591.37,1.52699394]
[1741157633952,0.31054391,592.38,591.37,1.52699394]
[1741157634150,0.31054391,592.37,591.37,1.52699394]
[1741157634351,0.31054391,592.36,591.28,1.76439273]
[1741157634554,0.31054391,592.35,591.28,1.76439273]
[1741157634749,0.31054391,592.34,591.28,1.76439273]
[1741157634954,0.33760972,592.4,591.28,1.76439273]
[1741157634955,0.31054391,592.33,591.28,1.76439273]
[1741157635152,0.31054391,592.39,591.28,1.76439273]
[1741157635356,0.31054391,592.38,591.28,1.76439273]
[1741157635557,0.31054391,592.37,591.28,1.76439273]
[1741157635757,0.31054391,592.36,591.28,1.76439273]
[1741157636058,0.31054391,592.35,591.28,1.76439273]
[1741157636258,0.31054391,592.34,591.28,1.76439273]
[1741157636552,0.31054391,592.33,591.28,1.76439273]
[1741157636751,0.31054558,592.32,591.28,1.76439273]
[1741157636957,0.31054558,592.39,591.28,1.76439273]
[1741157637156,0.31054558,592.39,591.21,0.33828927]
[1741157638059,0.31054558,592.39,591.22,1.76452692]
[1741157638554,0.31054012,592.38,591.22,1.76452692]
[1741157638760,0.31054012,592.37,591.22,1.76452692]
[1741157638960,0.31054012,592.36,591.22,1.76452692]
[1741157639160,0.31054012,592.35,591.22,1.76452692]
[1741157639461,0.31054012,592.34,591.23,0.33827782]
[1741157639662,0.31054012,592.33,591.23,0.33827782]
[1741157639855,0.31054012,592.32,591.23,0.33827782]
[1741157640055,0.33760972,592.4,591.23,0.33827782]
[1741157640360,0.31050615,592.39,591.23,0.33827782]
[1741157641461,0.31051178,592.38,591.23,0.33827782]
[1741157641860,0.31051178,592.37,591.23,0.33827782]
[1741157642061,0.31051178,592.39,591.23,0.33827782]
[1741157642263,0.31051178,592.38,591.23,0.33827782]
[1741157642461,0.31051178,592.39,591.44,1.52699394]
[1741157643258,0.31050596,592.38,591.44,1.52699394]
[1741157643465,0.31050596,592.37,591.44,1.52699394]
[1741157643668,0.31050596,592.39,591.44,1.52699394]
[1741157643865,0.31050596,592.38,591.44,1.52699394]
[1741157644063,0.31050596,592.39,591.44,1.52699394]
[1741157644365,0.33760972,592.4,591.31,1.76414676]
[1741157644366,0.31050596,592.38,591.45,1.52699394]
[1741157644564,0.31050596,592.39,591.45,1.52699394]